lending/lending_fUSD_20241115
["ID","MTS","AMOUNT","RATE_DAILY","PERIOD"]
[342287569,1731694278210,-500.0,9.873e-05,2]
[342287570,1731694278220,-2544.5,9.873e-05,2]
[342287571,1731694278229,-4136.21,9.873e-05,2]
[342287572,1731694278239,-866.1,9.873e-05,2]
[342287573,1731694278250,-775.81,9.873e-05,2]
[342287574,1731694278260,-500.0,9.873e-05,2]
[342287575,1731694278270,-1322.36,9.873e-05,2]
[342287576,1731694278280,-659.46,9.873e-05,2]
[342287577,1731694278290,-500.0,9.873e-05,2]
[342287578,1731694278301,-13327.05,9.873e-05,2]
[342287579,1731694278310,-554.64,9.873e-05,2]
[342287580,1731694278321,-500.0,9.873e-05,2]
[342287581,1731694278331,-640.9,9.873e-05,2]
[342287582,1731694278341,-1268.43,9.873e-05,2]
[342287583,1731694278351,-417.32551777,9.873e-05,2]
[342287584,1731694278362,-500.0,9.873e-05,2]
[342287585,1731694278372,-1292.91,9.873e-05,2]
[342287586,1731694278382,-1470.93,9.873e-05,2]
[342287587,1731694278392,-500.0,9.874e-05,2]
[342287588,1731694278408,-500.0,9.874e-05,2]
[342287589,1731694278417,-500.0,9.874e-05,2]
[342287590,1731694278427,-1069.32,9.874e-05,2]
[342287591,1731694278437,-500.0,9.874e-05,2]
[342287592,1731694278446,-1097.84,9.874e-05,2]
[342287593,1731694278456,-500.0,9.874e-05,2]
[342287594,1731694278466,-500.0,9.874e-05,2]
[342287595,1731694278476,-500.0,9.874e-05,2]
[342287596,1731694278486,-500.0,9.874e-05,2]
[342287597,1731694278496,-500.0,9.874e-05,2]
[342287598,1731694278505,-500.0,9.874e-05,2]
[342287599,1731694278515,-500.0,9.874e-05,2]
[342287600,1731694278525,-500.0,9.874e-05,2]
[342287601,1731694278535,-500.0,9.874e-05,2]
[342287602,1731694278544,-500.0,9.874e-05,2]
[342287603,1731694278556,-500.0,9.874e-05,2]
[342287604,1731694278565,-538.5,9.874e-05,2]
[342287605,1731694278575,-500.0,9.874e-05,2]
[342287606,1731694278586,-500.0,9.874e-05,2]
[342287607,1731694278595,-500.0,9.874e-05,2]
[342287608,1731694278605,-233.04,9.874e-05,2]
[342287609,1731694278615,-579.71,9.874e-05,2]
[342287610,1731694278624,-500.0,9.874e-05,2]
[342287611,1731694278634,-500.0,9.874e-05,2]
[342287612,1731694278644,-958.58,9.874e-05,2]
[342287613,1731694278654,-1557.57,9.874e-05,2]
[342287614,1731694278663,-500.0,9.874e-05,2]
[342287615,1731694278673,-634.89,9.874e-05,2]
[342287616,1731694278682,-500.0,9.874e-05,2]
[342287617,1731694278692,-500.0,9.874e-05,2]
[342287618,1731694278702,-502.56,9.874e-05,2]
[342287619,1731694278712,-250.0,9.874e-05,2]
[342287620,1731694278722,-500.0,9.874e-05,2]
[342287621,1731694278732,-500.0,9.874e-05,2]
[342287622,1731694278743,-2320.87,9.874e-05,2]
[342287623,1731694278753,-500.0,9.874e-05,2]
[342287624,1731694278763,-500.0,9.874e-05,2]
[342287625,1731694278772,-500.0,9.874e-05,2]
[342287626,1731694278783,-500.0,9.874e-05,2]
[342287627,1731694278793,-500.0,9.874e-05,2]
[342287628,1731694278808,-500.0,9.874e-05,2]
[342287629,1731694278819,-500.0,9.874e-05,2]
[342287630,1731694278829,-500.0,9.874e-05,2]
[342287631,1731694278838,-500.0,9.874e-05,2]
[342287632,1731694278849,-655.31,9.874e-05,2]
[342287633,1731694278858,-500.0,9.874e-05,2]
[342287634,1731694278868,-500.0,9.874e-05,2]
[342287635,1731694278879,-500.0,9.874e-05,2]
[342287636,1731694278889,-866.55,9.874e-05,2]
[342287637,1731694278899,-513.45,9.874e-05,2]
[342287638,1731694278909,-500.0,9.874e-05,2]
[342287639,1731694278918,-1168.79,9.874e-05,2]
[342287640,1731694278928,-500.0,9.874e-05,2]
[342287641,1731694278938,-500.0,9.874e-05,2]
[342287642,1731694278948,-500.0,9.874e-05,2]
[342287643,1731694278958,-539.56,9.874e-05,2]
[342287644,1731694278970,-713.61,9.874e-05,2]
[342287645,1731694278980,-500.0,9.874e-05,2]
[342287646,1731694278989,-500.0,9.874e-05,2]
[342287647,1731694278999,-925.48,9.874e-05,2]
[342287648,1731694279010,-500.0,9.874e-05,2]
[342287649,1731694279021,-500.0,9.874e-05,2]
[342287650,1731694279031,-500.0,9.874e-05,2]
[342287651,1731694279042,-500.0,9.874e-05,2]
[342287652,1731694279057,-512.54,9.874e-05,2]
[342287653,1731694279068,-500.0,9.874e-05,2]
[342287654,1731694279078,-285.53735804,9.874e-05,2]
[342287655,1731694279088,-514.14,9.874e-05,2]
[342287656,1731694279098,-500.0,9.874e-05,2]
[342287657,1731694279108,-500.0,9.874e-05,2]
[342287658,1731694279119,-500.0,9.874e-05,2]
[342287659,1731694279129,-500.0,9.874e-05,2]
[342287660,1731694279139,-500.0,9.874e-05,2]
[342287661,1731694279150,-253.8,9.874e-05,2]
[342287662,1731694279161,-653.18,9.874e-05,2]
[342287663,1731694279171,-545.36,9.874e-05,2]
[342287664,1731694279182,-500.0,9.874e-05,2]
[342287665,1731694279192,-500.0,9.874e-05,2]
[342287666,1731694279202,-877.77,9.874e-05,2]
[342287667,1731694279212,-713.07,9.874e-05,2]
[342287668,1731694279222,-944.57,9.874e-05,2]
[342287669,1731694279232,-500.0,9.874e-05,2]
[342287670,1731694279243,-848.75,9.874e-05,2]
[342287671,1731694279254,-500.0,9.874e-05,2]
[342287672,1731694279264,-500.0,9.874e-05,2]
[342287673,1731694279274,-723.22,9.874e-05,2]
[342287674,1731694279283,-500.0,9.874e-05,2]
[342287675,1731694279293,-1607.14,9.874e-05,2]
[342287676,1731694279305,-661.63,9.874e-05,2]
[342287677,1731694279316,-500.0,9.874e-05,2]
[342287678,1731694279326,-500.0,9.874e-05,2]
[342287679,1731694279336,-500.0,9.874e-05,2]
[342287680,1731694279347,-981.13,9.874e-05,2]
[342287681,1731694279357,-846.22,9.874e-05,2]
[342287682,1731694279367,-500.0,9.874e-05,2]
[342287683,1731694279377,-500.0,9.874e-05,2]
[342287684,1731694279387,-500.0,9.874e-05,2]
[342287685,1731694279396,-576.88197226,9.874e-05,2]
[342287686,1731694279406,-1443.55,9.874e-05,2]
[342287687,1731694279415,-510.69,9.874e-05,2]
[342287688,1731694279520,-590.4,9.874e-05,2]
[342287689,1731694279531,-510.98,9.874e-05,2]
[342287690,1731694279540,-822.53,9.874e-05,2]
[342287691,1731694279551,-500.0,9.874e-05,2]
[342287692,1731694279561,-500.0,9.874e-05,2]
[342287693,1731694279570,-569.69,9.874e-05,2]
[342287694,1731694279579,-500.0,9.874e-05,2]
[342287695,1731694279589,-1150.64,9.874e-05,2]
[342287696,1731694279598,-500.0,9.874e-05,2]
[342287697,1731694279608,-500.0,9.874e-05,2]
[342287698,1731694279618,-1041.05,9.874e-05,2]
[342287699,1731694279628,-1621.69,9.874e-05,2]
[342287700,1731694279637,-500.0,9.874e-05,2]
[342287701,1731694279647,-500.0,9.874e-05,2]
[342287702,1731694279657,-500.0,9.874e-05,2]
[342287703,1731694279668,-500.0,9.874e-05,2]
[342287704,1731694279678,-570.65,9.874e-05,2]
[342287705,1731694279687,-500.0,9.874e-05,2]
[342287706,1731694279697,-500.0,9.874e-05,2]
[342287707,1731694279707,-537.66,9.874e-05,2]
[342287708,1731694279718,-615.49,9.874e-05,2]
[342287709,1731694279728,-513.01,9.874e-05,2]
[342287710,1731694279738,-924.06,9.874e-05,2]
[342287711,1731694279748,-927.5,9.874e-05,2]
[342287712,1731694279758,-500.0,9.874e-05,2]
[342287713,1731694279768,-943.65,9.874e-05,2]
[342287714,1731694279778,-500.0,9.874e-05,2]
[342287715,1731694279788,-500.0,9.874e-05,2]
[342287716,1731694279799,-529.99,9.874e-05,2]
[342287717,1731694279809,-516.86,9.874e-05,2]
[342287718,1731694279819,-500.0,9.874e-05,2]
[342287719,1731694279829,-500.0,9.874e-05,2]
[342287720,1731694279839,-500.0,9.874e-05,2]
[342287721,1731694279849,-526.46,9.874e-05,2]
[342287722,1731694279859,-723.07,9.874e-05,2]
[342287723,1731694279868,-500.0,9.874e-05,2]
[342287724,1731694279877,-500.0,9.874e-05,2]
[342287725,1731694279886,-500.0,9.874e-05,2]
[342287726,1731694279896,-1384.55,9.874e-05,2]
[342287727,1731694279906,-500.0,9.874e-05,2]
[342287728,1731694279915,-500.0,9.874e-05,2]
[342287729,1731694279924,-500.0,9.874e-05,2]
[342287730,1731694279933,-626.1,9.874e-05,2]
[342287731,1731694279943,-500.0,9.874e-05,2]
[342287732,1731694279953,-661.01,9.874e-05,2]
[342287733,1731694279963,-500.0,9.874e-05,2]
[342287734,1731694279976,-500.0,9.874e-05,2]
[342287735,1731694279986,-500.0,9.874e-05,2]
[342287736,1731694279995,-1238.12,9.874e-05,2]
[342287737,1731694280005,-421.02944456,9.874e-05,2]
[342287738,1731694280015,-500.0,9.874e-05,2]
[342287739,1731694280024,-1166.81,9.874e-05,2]
[342287740,1731694280034,-500.0,9.874e-05,2]
[342287741,1731694280043,-500.0,9.874e-05,2]
[342287742,1731694280055,-1115.63,9.874e-05,2]
[342287743,1731694280065,-500.0,9.874e-05,2]
[342287744,1731694280074,-609.85,9.874e-05,2]
[342287745,1731694280083,-870.93,9.874e-05,2]
[342287746,1731694280093,-894.3,9.874e-05,2]
[342287747,1731694280103,-628.6,9.874e-05,2]
[342287748,1731694280112,-1290.18,9.874e-05,2]
[342287749,1731694280121,-500.0,9.874e-05,2]
[342287750,1731694280131,-641.07,9.874e-05,2]
[342287751,1731694280141,-500.0,9.874e-05,2]
[342287752,1731694280150,-500.0,9.874e-05,2]
[342287753,1731694280161,-687.53,9.874e-05,2]
[342287754,1731694280170,-2092.61,9.874e-05,2]
[342287755,1731694280180,-592.92,9.874e-05,2]
[342287756,1731694280190,-500.0,9.874e-05,2]
[342287757,1731694280199,-500.0,9.874e-05,2]
[342287758,1731694280209,-500.0,9.874e-05,2]
[342287759,1731694280218,-559.34911693,9.874e-05,2]
[342287760,1731694280228,-2064.55,9.874e-05,2]
[342287761,1731694280238,-500.0,9.874e-05,2]
[342287762,1731694280248,-4793.06,9.874e-05,2]
[342287763,1731694280257,-500.0,9.874e-05,2]
[342287764,1731694280267,-196.55661074,9.874e-05,2]
[342287765,1731694280277,-500.0,9.874e-05,2]
[342287766,1731694280287,-500.0,9.874e-05,2]
[342287767,1731694280297,-2429.02,9.874e-05,2]
[342287768,1731694280306,-575.4,9.874e-05,2]
[342287769,1731694280316,-500.0,9.874e-05,2]
[342287770,1731694280325,-5513.04,9.874e-05,2]
[342287771,1731694280335,-500.0,9.874e-05,2]
[342287772,1731694280345,-996.71,9.874e-05,2]
[342287773,1731694280354,-500.0,9.874e-05,2]
[342287774,1731694280364,-500.0,9.874e-05,2]
[342287775,1731694280373,-724.49,9.874e-05,2]
[342287776,1731694280382,-500.0,9.874e-05,2]
[342287777,1731694280392,-500.0,9.874e-05,2]
[342287778,1731694280401,-500.0,9.874e-05,2]
[342287779,1731694280411,-500.0,9.874e-05,2]
[342287780,1731694280420,-387.16938368,9.874e-05,2]
[342287781,1731694280430,-500.0,9.874e-05,2]
[342287782,1731694280439,-726.77,9.874e-05,2]
[342287783,1731694280449,-6365.68,9.874e-05,2]
[342287784,1731694280459,-1930.36,9.874e-05,2]
[342287785,1731694280469,-608.92,9.874e-05,2]
[342287786,1731694280478,-500.0,9.874e-05,2]
[342287787,1731694280488,-2966.56,9.874e-05,2]
[342287788,1731694280497,-661.07,9.874e-05,2]
[342287789,1731694280507,-732.38,9.874e-05,2]
[342287790,1731694280516,-500.0,9.874e-05,2]
[342287791,1731694280526,-920.5,9.874e-05,2]
[342287792,1731694280535,-500.0,9.874e-05,2]
[342287793,1731694280544,-742.47,9.874e-05,2]
[342287794,1731694280554,-500.0,9.874e-05,2]
[342287795,1731694280563,-500.0,9.874e-05,2]
[342287796,1731694280572,-500.0,9.874e-05,2]
[342287797,1731694280582,-1356.87,9.874e-05,2]
[342287798,1731694280591,-500.0,9.874e-05,2]
[342287799,1731694280600,-500.0,9.874e-05,2]
[342287800,1731694280609,-613.3,9.874e-05,2]
[342287801,1731694280619,-5604.37,9.874e-05,2]
[342287802,1731694280628,-566.14,9.874e-05,2]
[342287803,1731694280637,-684.01,9.874e-05,2]
[342287804,1731694280646,-500.0,9.874e-05,2]
[342287805,1731694280655,-2544.5,9.874e-05,2]
[342287806,1731694280665,-2544.5,9.874e-05,2]
[342287807,1731694280674,-500.0,9.874e-05,2]
[342287808,1731694280684,-500.0,9.874e-05,2]
[342287809,1731694280694,-27914.34,9.874e-05,2]
[342287810,1731694280703,-500.0,9.874e-05,2]
[342287811,1731694280713,-675.99,9.874e-05,2]
[342287812,1731694280723,-3048.91,9.874e-05,2]
[342287813,1731694280732,-500.0,9.874e-05,2]
[342287814,1731694280742,-1903.08,9.874e-05,2]
[342287815,1731694280752,-1287.98,9.874e-05,2]
[342287816,1731694280762,-500.0,9.874e-05,2]
[342287817,1731694280772,-4136.21,9.874e-05,2]
[342287818,1731694280781,-500.0,9.874e-05,2]
[342287819,1731694280791,-4136.21,9.874e-05,2]
[342287820,1731694280801,-500.0,9.874e-05,2]
[342287821,1731694280810,-472.80949318,9.874e-05,2]
[342287822,1731694280819,-858.99,9.874e-05,2]
[342287823,1731694280828,-1256.42,9.874e-05,2]
[342287824,1731694280838,-348.36270679,9.874e-05,2]
[342287825,1731694280847,-562.98,9.874e-05,2]
[342287826,1731694280856,-500.0,9.874e-05,2]
[342287827,1731694280866,-544.47,9.874e-05,2]
[342287828,1731694280875,-1510.02,9.874e-05,2]
[342287829,1731694280884,-500.0,9.874e-05,2]
[342287830,1731694280893,-2847.51,9.874e-05,2]
[342287831,1731694280902,-1580.95,9.874e-05,2]
[342287832,1731694280911,-973.26,9.874e-05,2]
[342287833,1731694280921,-575.21,9.874e-05,2]
[342287834,1731694280930,-500.0,9.874e-05,2]
[342287835,1731694280939,-500.0,9.874e-05,2]
[342287836,1731694280948,-4678.34,9.874e-05,2]
[342287837,1731694280958,-500.0,9.874e-05,2]
[342287838,1731694280968,-866.1,9.874e-05,2]
[342287839,1731694280980,-866.1,9.874e-05,2]
[342287840,1731694280989,-500.0,9.874e-05,2]
[342287841,1731694280998,-608.09,9.874e-05,2]
[342287842,1731694281007,-500.0,9.874e-05,2]
[342287843,1731694281018,-945.74,9.874e-05,2]
[342287844,1731694281027,-2472.18,9.874e-05,2]
[342287845,1731694281036,-500.0,9.874e-05,2]
[342287846,1731694281047,-500.0,9.874e-05,2]
[342287847,1731694281056,-520.31237136,9.874e-05,2]
[342287848,1731694281066,-500.0,9.874e-05,2]
[342287849,1731694281075,-1087.19,9.874e-05,2]
[342287850,1731694281084,-500.0,9.874e-05,2]
[342287851,1731694281093,-617.16,9.874e-05,2]
[342287852,1731694281102,-775.81,9.874e-05,2]
[342287853,1731694281112,-775.81,9.874e-05,2]
[342287854,1731694281122,-500.0,9.874e-05,2]
[342287855,1731694281132,-500.0,9.874e-05,2]
[342287856,1731694281141,-543.87,9.874e-05,2]
[342287857,1731694281151,-1107.14,9.874e-05,2]
[342287858,1731694281160,-500.0,9.874e-05,2]
[342287859,1731694281170,-500.0,9.874e-05,2]
[342287860,1731694281179,-1099.06,9.874e-05,2]
[342287861,1731694281188,-500.0,9.874e-05,2]
[342287862,1731694281198,-500.0,9.874e-05,2]
[342287863,1731694281207,-500.0,9.874e-05,2]
[342287864,1731694281216,-500.0,9.874e-05,2]
[342287865,1731694281225,-1322.36,9.874e-05,2]
[342287866,1731694281235,-500.0,9.874e-05,2]
[342287867,1731694281244,-1322.36,9.874e-05,2]
[342287868,1731694281254,-500.0,9.874e-05,2]
[342287869,1731694281263,-500.0,9.874e-05,2]
[342287870,1731694281273,-500.0,9.874e-05,2]
[342287871,1731694281283,-500.0,9.874e-05,2]
[342287872,1731694281292,-500.0,9.874e-05,2]
[342287873,1731694281302,-500.0,9.874e-05,2]
[342287874,1731694281311,-965.19,9.874e-05,2]
[342287875,1731694281321,-449.1748221,9.874e-05,2]
[342287876,1731694281330,-1552.64,9.874e-05,2]
[342287877,1731694281340,-500.0,9.874e-05,2]
[342287878,1731694281350,-500.0,9.874e-05,2]
[342287879,1731694281359,-1068.7,9.874e-05,2]
[342287880,1731694281368,-500.0,9.874e-05,2]
[342287881,1731694281378,-659.46,9.874e-05,2]
[342287882,1731694281387,-544.09359383,9.874e-05,2]
[342287883,1731694281396,-659.46,9.874e-05,2]
[342287884,1731694281405,-556.68,9.874e-05,2]
[342287885,1731694281414,-295.18,9.874e-05,2]
[342287886,1731694281423,-736.05,9.874e-05,2]
[342287887,1731694281432,-500.0,9.874e-05,2]
[342287888,1731694281442,-3058.28,9.874e-05,2]
[342287889,1731694281451,-500.0,9.874e-05,2]
[342287890,1731694281460,-500.0,9.874e-05,2]
[342287891,1731694281470,-500.0,9.874e-05,2]
[342287892,1731694281479,-500.0,9.874e-05,2]
[342287893,1731694281489,-500.0,9.874e-05,2]
[342287894,1731694281498,-534.78,9.874e-05,2]
[342287895,1731694281508,-500.0,9.874e-05,2]
[342287896,1731694281517,-465.94,9.874e-05,2]
[342287897,1731694281527,-500.0,9.874e-05,2]
[342287898,1731694281537,-4078.51,9.874e-05,2]
[342287899,1731694281546,-836.25,9.874e-05,2]
[342287900,1731694281556,-1350.58,9.874e-05,2]
[342287901,1731694281565,-586.79,9.874e-05,2]
[342287902,1731694281575,-13327.05,9.874e-05,2]
[342287903,1731694281585,-13327.05,9.874e-05,2]
[342287904,1731694281594,-983.62,9.874e-05,2]
[342287905,1731694281604,-13327.05,9.874e-05,2]
[342287906,1731694281614,-554.64,9.874e-05,2]
[342287907,1731694281624,-554.64,9.874e-05,2]
[342287908,1731694281633,-500.0,9.874e-05,2]
[342287909,1731694281643,-554.64,9.874e-05,2]
[342287910,1731694281652,-4119.01,9.874e-05,2]
[342287911,1731694281662,-1186.42,9.874e-05,2]
[342287912,1731694281671,-500.0,9.874e-05,2]
[342287913,1731694281681,-500.0,9.874e-05,2]
[342287914,1731694281690,-500.0,9.874e-05,2]
[342287915,1731694281699,-500.0,9.874e-05,2]
[342287916,1731694281708,-500.0,9.874e-05,2]
[342287917,1731694281718,-500.0,9.874e-05,2]
[342287918,1731694281727,-640.9,9.874e-05,2]
[342287919,1731694281737,-640.9,9.874e-05,2]
[342287920,1731694281746,-640.9,9.874e-05,2]
[342287921,1731694281755,-242.25460976,9.874e-05,2]
[342287922,1731694281765,-1268.43,9.874e-05,2]
[342287923,1731694281774,-1268.43,9.874e-05,2]
[342287924,1731694281784,-500.0,9.874e-05,2]
[342287925,1731694281794,-500.0,9.874e-05,2]
[342287926,1731694281804,-500.0,9.874e-05,2]
[342287927,1731694281814,-500.0,9.874e-05,2]
[342287928,1731694281825,-1482.6,9.874e-05,2]
[342287929,1731694281843,-500.0,9.874e-05,2]
[342287930,1731694281854,-855.59,9.874e-05,2]
[342287931,1731694281863,-500.0,9.874e-05,2]
[342287932,1731694281873,-500.0,9.874e-05,2]
[342287933,1731694281882,-1020.8,9.874e-05,2]
[342287934,1731694281891,-500.0,9.874e-05,2]
[342287935,1731694281900,-500.0,9.874e-05,2]
[342287936,1731694281909,-500.0,9.874e-05,2]
[342287937,1731694281919,-500.0,9.874e-05,2]
[342287938,1731694281929,-1382.63,9.874e-05,2]
[342287939,1731694281939,-500.0,9.874e-05,2]
[342287940,1731694281948,-500.0,9.874e-05,2]
[342287941,1731694281958,-500.0,9.874e-05,2]
[342287942,1731694281968,-500.0,9.874e-05,2]
[342287943,1731694281979,-1931.56,9.874e-05,2]
[342287944,1731694281989,-500.0,9.874e-05,2]
[342287945,1731694281999,-1292.91,9.874e-05,2]
[342287946,1731694282009,-1292.91,9.874e-05,2]
[342287947,1731694282019,-500.0,9.874e-05,2]
[342287948,1731694282028,-500.0,9.874e-05,2]
[342287949,1731694282037,-1292.91,9.874e-05,2]
[342287950,1731694282048,-663.56,9.874e-05,2]
[342287951,1731694282058,-500.0,9.874e-05,2]
[342287952,1731694282068,-567.51420156,9.874e-05,2]
[342287953,1731694282078,-500.0,9.874e-05,2]
[342287954,1731694282087,-681.85,9.874e-05,2]
[342287955,1731694282097,-1470.93,9.874e-05,2]
[342287956,1731694282107,-1470.93,9.874e-05,2]
[342287957,1731694282117,-3295.15,9.874e-05,2]
[342287958,1731694282127,-2363.83,9.874e-05,2]
[342287959,1731694282136,-1470.93,9.874e-05,2]
[342287960,1731694282146,-500.0,9.874e-05,2]
[342287961,1731694282155,-652.61,9.874e-05,2]
[342287962,1731694282165,-823.21,9.874e-05,2]
[342287963,1731694282175,-500.0,9.874e-05,2]
[342287964,1731694282185,-2854.94,9.874e-05,2]
[342287965,1731694282195,-817.4,9.874e-05,2]
[342287966,1731694282204,-490.10468683,9.874e-05,2]
[342287967,1731694282213,-500.0,9.875e-05,2]
[342287968,1731694282222,-500.0,9.875e-05,2]
[342287969,1731694282231,-475.85,9.875e-05,2]
[342287970,1731694282240,-500.0,9.875e-05,2]
[342287971,1731694282249,-500.0,9.875e-05,2]
[342287972,1731694282259,-500.0,9.875e-05,2]
[342287973,1731694282268,-500.0,9.875e-05,2]
[342287974,1731694282277,-3036.36,9.875e-05,2]
[342287975,1731694282287,-1069.32,9.875e-05,2]
[342287976,1731694282296,-1069.32,9.875e-05,2]
[342287977,1731694282306,-500.0,9.875e-05,2]
[342287978,1731694282316,-500.0,9.875e-05,2]
[342287979,1731694282326,-2543.81,9.875e-05,2]
[342287980,1731694282335,-4533.75,9.875e-05,2]
[342287981,1731694282344,-1097.84,9.875e-05,2]
[342287982,1731694282353,-1097.84,9.875e-05,2]
[342287983,1731694282363,-500.0,9.875e-05,2]
[342287984,1731694282372,-500.0,9.875e-05,2]
[342287985,1731694282381,-500.0,9.875e-05,2]
[342287986,1731694282391,-500.0,9.875e-05,2]
[342287987,1731694282400,-500.0,9.875e-05,2]
[342287988,1731694282410,-605.8,9.875e-05,2]
[342287989,1731694282419,-500.0,9.875e-05,2]
[342287990,1731694282428,-500.0,9.875e-05,2]
[342287991,1731694282438,-576.68,9.875e-05,2]
[342287992,1731694282448,-500.0,9.875e-05,2]
[342287993,1731694282457,-500.0,9.875e-05,2]
[342287994,1731694282467,-500.0,9.875e-05,2]
[342287995,1731694282476,-500.0,9.875e-05,2]
[342287996,1731694282486,-500.0,9.875e-05,2]
[342287997,1731694282496,-500.0,9.875e-05,2]
[342287998,1731694282505,-273.85,9.875e-05,2]
[342287999,1731694282514,-500.0,9.875e-05,2]
[342288000,1731694282524,-500.0,9.875e-05,2]
[342288001,1731694282534,-500.0,9.875e-05,2]
[342288002,1731694282543,-500.0,9.875e-05,2]
[342288003,1731694282554,-500.0,9.875e-05,2]
[342288004,1731694282564,-500.0,9.875e-05,2]
[342288005,1731694282573,-500.0,9.875e-05,2]
[342288006,1731694282583,-500.0,9.875e-05,2]
[342288007,1731694282593,-538.5,9.875e-05,2]
[342288008,1731694282602,-538.5,9.875e-05,2]
[342288009,1731694282613,-500.0,9.875e-05,2]
[342288010,1731694282630,-535.74993548,9.875e-05,2]
[342288011,1731694282639,-500.0,9.875e-05,2]
[342288012,1731694282648,-500.0,9.875e-05,2]
[342288013,1731694282657,-1164.32,9.875e-05,2]
[342288014,1731694282667,-629.36,9.875e-05,2]
[342288015,1731694282676,-2545.44,9.875e-05,2]
[342288016,1731694282686,-500.0,9.875e-05,2]
[342288017,1731694282695,-500.0,9.875e-05,2]
[342288018,1731694282705,-579.71,9.875e-05,2]
[342288019,1731694282715,-500.0,9.875e-05,2]
[342288020,1731694282724,-500.0,9.875e-05,2]
[342288021,1731694282734,-500.0,9.875e-05,2]
[342288022,1731694282743,-579.71,9.875e-05,2]
[342288023,1731694282753,-500.0,9.875e-05,2]
[342288024,1731694282762,-500.0,9.875e-05,2]
[342288025,1731694282771,-958.58,9.875e-05,2]
[342288026,1731694282781,-958.58,9.875e-05,2]
[342288027,1731694282791,-1557.57,9.875e-05,2]
[342288028,1731694282801,-500.0,9.875e-05,2]
[342288029,1731694282810,-500.0,9.875e-05,2]
[342288030,1731694282820,-1557.57,9.875e-05,2]
[342288031,1731694282829,-500.0,9.875e-05,2]
[342288032,1731694282839,-634.89,9.875e-05,2]
[342288033,1731694282848,-321.16,9.875e-05,2]
[342288034,1731694282858,-634.89,9.875e-05,2]
[342288035,1731694282867,-699.76,9.875e-05,2]
[342288036,1731694282876,-500.0,9.875e-05,2]
[342288037,1731694282886,-500.0,9.875e-05,2]
[342288038,1731694282896,-250.0,9.875e-05,2]
[342288039,1731694282906,-1998.79,9.875e-05,2]
[342288040,1731694282915,-250.0,9.875e-05,2]
[342288041,1731694282924,-500.0,9.875e-05,2]
[342288042,1731694282933,-500.0,9.875e-05,2]
[342288043,1731694282943,-500.0,9.875e-05,2]
[342288044,1731694282953,-500.0,9.875e-05,2]
[342288045,1731694282962,-2830.35,9.875e-05,2]
[342288046,1731694282976,-2320.87,9.875e-05,2]
[342288047,1731694282986,-2320.87,9.875e-05,2]
[342288048,1731694282995,-500.0,9.875e-05,2]
[342288049,1731694283004,-500.0,9.875e-05,2]
[342288050,1731694283015,-542.55,9.875e-05,2]
[342288051,1731694283024,-500.0,9.875e-05,2]
[342288052,1731694283034,-472.26,9.875e-05,2]
[342288053,1731694283044,-2268.01,9.875e-05,2]
[342288054,1731694283056,-500.0,9.875e-05,2]
[342288055,1731694283066,-500.0,9.875e-05,2]
[342288056,1731694283077,-500.0,9.875e-05,2]
[342288057,1731694283087,-500.0,9.875e-05,2]
[342288058,1731694283097,-500.0,9.875e-05,2]
[342288059,1731694283106,-500.0,9.875e-05,2]
[342288060,1731694283115,-500.0,9.875e-05,2]
[342288061,1731694283124,-500.0,9.875e-05,2]
[342288062,1731694283134,-500.0,9.875e-05,2]
[342288063,1731694283144,-306.22,9.875e-05,2]
[342288064,1731694283153,-500.0,9.875e-05,2]
[342288065,1731694283163,-916.34,9.875e-05,2]
[342288066,1731694283172,-655.31,9.875e-05,2]
[342288067,1731694283181,-655.31,9.875e-05,2]
[342288068,1731694283191,-500.0,9.875e-05,2]